[Event "Goteborg Open 2024"]
[Site "Goteborgs Schackcentrum, Vegatan 20, Gothenburg, Sweden"]
[Date "2024.08.03"]
[Round "5.2"]
[White "Ask, Josef"]
[Black "Wickstrom, Carina"]
[Result "0-1"]
[TimeControl "15 minutes + 5 seconds per move from move one (Round 1 - 4) / 90 minutes + 30 seconds per move from move one (Round 5 - 8)"]
[WhiteTitle "FM"]
[WhiteFideId "1704583"]
[BlackFideId "1743201"]
[WhiteElo "2129"]
[BlackElo "2013"]

1. c4 {[%clk 01:30:57]} {[%emt 00:00:04]} g6 {[%clk 01:30:55]} {[%emt
00:00:05]} 2. Nc3 {[%clk 01:31:00]} {[%emt 00:00:28]} Bg7 {[%clk 01:31:16]}
{[%emt 00:00:07]} 3. g3 {[%clk 01:30:58]} {[%emt 00:00:32]} d6 {[%clk
01:31:30]} {[%emt 00:00:18]} 4. Bg2 {[%clk 01:31:11]} {[%emt 00:00:16]} e5
{[%clk 01:31:24]} {[%emt 00:00:35]} 5. Rb1 {[%clk 01:30:23]} {[%emt 00:01:18]}
f5 {[%clk 01:27:48]} {[%emt 00:04:07]} 6. b4 {[%clk 01:27:56]} {[%emt
00:02:56]} Nc6 {[%clk 01:22:31]} {[%emt 00:05:48]} 7. b5 {[%clk 01:26:47]}
{[%emt 00:01:38]} Nce7 {[%clk 01:22:33]} {[%emt 00:00:29]} 8. a4 {[%clk
01:24:53]} {[%emt 00:02:24]} Rb8 {[%clk 01:18:01]} {[%emt 00:05:02]} 9. a5
{[%clk 01:17:05]} {[%emt 00:08:18]} b6 {[%clk 01:15:51]} {[%emt 00:02:40]} 10.
Qa4 {[%clk 01:13:47]} {[%emt 00:03:47]} Nf6 {[%clk 01:09:51]} {[%emt 00:06:30]}
11. d3 {[%clk 00:59:09]} {[%emt 00:15:09]} h6 {[%clk 01:06:51]} {[%emt
00:03:30]} 12. e3 {[%clk 00:55:37]} {[%emt 00:04:02]} O-O {[%clk 01:04:26]}
{[%emt 00:02:54]} 13. Nge2 {[%clk 00:53:47]} {[%emt 00:02:20]} g5 {[%clk
00:54:03]} {[%emt 00:10:54]} 14. f4 {[%clk 00:50:30]} {[%emt 00:03:46]} Be6
{[%clk 00:46:33]} {[%emt 00:08:00]} 15. O-O {[%clk 00:49:42]} {[%emt 00:01:19]}
Qe8 {[%clk 00:43:14]} {[%emt 00:03:49]} 16. axb6 {[%clk 00:41:16]} {[%emt
00:08:56]} axb6 {[%clk 00:42:25]} {[%emt 00:01:20]} 17. Qa7 {[%clk 00:40:19]}
{[%emt 00:01:26]} Qd7 {[%clk 00:40:04]} {[%emt 00:02:50]} 18. Ra1 {[%clk
00:36:09]} {[%emt 00:04:40]} e4 {[%clk 00:35:42]} {[%emt 00:04:53]} 19. Nd4
{[%clk 00:31:05]} {[%emt 00:05:34]} Bf7 {[%clk 00:34:14]} {[%emt 00:01:57]} 20.
fxg5 {[%clk 00:27:42]} {[%emt 00:03:53]} hxg5 {[%clk 00:33:45]} {[%emt
00:00:59]} 21. Bh3 {[%clk 00:26:32]} {[%emt 00:01:41]} g4 {[%clk 00:32:17]}
{[%emt 00:01:58]} 22. Bg2 {[%clk 00:26:53]} {[%emt 00:00:09]} exd3 {[%clk
00:25:41]} {[%emt 00:07:06]} 23. Ra4 {[%clk 00:26:02]} {[%emt 00:01:21]} d5
{[%clk 00:21:44]} {[%emt 00:04:27]} 24. Ba3 {[%clk 00:19:06]} {[%emt 00:07:26]}
Bg6 {[%clk 00:16:15]} {[%emt 00:05:58]} 25. cxd5 {[%clk 00:18:11]} {[%emt
00:01:26]} Ne4 {[%clk 00:13:43]} {[%emt 00:03:02]} 26. Nxe4 {[%clk 00:11:13]}
{[%emt 00:07:29]} fxe4 {[%clk 00:13:50]} {[%emt 00:00:22]} 27. d6 {[%clk
00:10:48]} {[%emt 00:00:55]} Nd5 {[%clk 00:11:43]} {[%emt 00:02:37]} 28. dxc7
{[%clk 00:06:43]} {[%emt 00:04:36]} Rxf1+ {[%clk 00:10:57]} {[%emt 00:01:16]}
29. Bxf1 {[%clk 00:07:06]} {[%emt 00:00:06]} Rc8 {[%clk 00:09:35]} {[%emt
00:01:52]} 30. Qb7 {[%clk 00:05:11]} {[%emt 00:02:25]} Rxc7 {[%clk 00:07:48]}
{[%emt 00:02:17]} 31. Ra8+ {[%clk 00:05:25]} {[%emt 00:00:16]} Kh7 {[%clk
00:08:01]} {[%emt 00:00:16]} 32. Qb8 {[%clk 00:05:47]} {[%emt 00:00:09]} Qf7
{[%clk 00:07:24]} {[%emt 00:01:08]} 33. Qd8 {[%clk 00:03:34]} {[%emt 00:02:42]}
Nxe3 {[%clk 00:05:05]} {[%emt 00:02:48]} 34. Qh4+ {[%clk 00:03:52]} {[%emt
00:00:13]} Bh5 {[%clk 00:05:24]} {[%emt 00:00:11]} 35. Bg2 {[%clk 00:02:12]}
{[%emt 00:02:11]} Nxg2 {[%clk 00:05:22]} {[%emt 00:00:31]} 36. Kxg2 {[%clk
00:02:27]} {[%emt 00:00:14]} d2 {[%clk 00:05:18]} {[%emt 00:00:34]} 37. Qg5
{[%emt 00:02:25]} d1=Q {[%clk 00:04:58]} {[%emt 00:00:48]} 0-1

[Event "Goteborg Open 2024"]
[Site "Goteborgs Schackcentrum, Vegatan 20, Gothenburg, Sweden"]
[Date "2024.08.03"]
[Round "5.3"]
[White "Wesslen, Ulf"]
[Black "Al Waeli, Laith"]
[Result "1-0"]
[TimeControl "15 minutes + 5 seconds per move from move one (Round 1 - 4) / 90 minutes + 30 seconds per move from move one (Round 5 - 8)"]
[BlackTitle "FM"]
[WhiteFideId "1705199"]
[BlackFideId "4801059"]
[WhiteElo "1953"]
[BlackElo "2077"]

1. d4 {[%clk 01:30:55]} {[%emt 00:00:05]} Nf6 {[%clk 01:30:52]} {[%emt
00:00:08]} 2. c4 {[%clk 01:31:08]} {[%emt 00:00:17]} g6 {[%clk 01:30:14]}
{[%emt 00:01:08]} 3. Nc3 {[%clk 01:30:43]} {[%emt 00:00:55]} Bg7 {[%clk
01:30:38]} {[%emt 00:00:06]} 4. Nf3 {[%clk 01:30:19]} {[%emt 00:00:54]} O-O
{[%clk 01:30:57]} {[%emt 00:00:10]} 5. g3 {[%clk 01:30:27]} {[%emt 00:00:22]}
d6 {[%clk 01:31:21]} {[%emt 00:00:07]} 6. Bg2 {[%clk 01:30:26]} {[%emt
00:00:30]} Nbd7 {[%clk 01:31:46]} {[%emt 00:00:07]} 7. O-O {[%clk 01:29:06]}
{[%emt 00:01:49]} e5 {[%clk 01:32:13]} {[%emt 00:00:04]} 8. e4 {[%clk
01:24:15]} {[%emt 00:05:21]} a6 {[%clk 01:31:41]} {[%emt 00:01:01]} 9. h3
{[%clk 01:20:25]} {[%emt 00:04:20]} b5 {[%clk 01:31:48]} {[%emt 00:00:23]} 10.
Bg5 {[%clk 01:15:52]} {[%emt 00:05:04]} h6 {[%clk 01:30:23]} {[%emt 00:01:54]}
11. Be3 {[%clk 01:13:35]} {[%emt 00:02:46]} c6 {[%clk 01:25:07]} {[%emt
00:05:46]} 12. Nd2 {[%clk 01:06:28]} {[%emt 00:07:37]} b4 {[%clk 01:18:03]}
{[%emt 00:07:35]} 13. Na4 {[%clk 01:03:15]} {[%emt 00:03:43]} Rb8 {[%clk
01:13:55]} {[%emt 00:04:38]} 14. dxe5 {[%clk 00:54:21]} {[%emt 00:09:24]} Nxe5
{[%clk 01:11:37]} {[%emt 00:02:48]} 15. f4 {[%clk 00:53:38]} {[%emt 00:01:13]}
Ned7 {[%clk 01:11:42]} {[%emt 00:00:25]} 16. c5 {[%clk 00:48:58]} {[%emt
00:05:10]} Nxc5 {[%clk 01:06:19]} {[%emt 00:05:54]} 17. Nxc5 {[%clk 00:47:41]}
{[%emt 00:01:45]} dxc5 {[%clk 01:06:44]} {[%emt 00:00:07]} 18. Bxc5 {[%clk
00:43:43]} {[%emt 00:04:28]} Re8 {[%clk 01:06:17]} {[%emt 00:00:56]} 19. Qc2
{[%clk 00:43:42]} {[%emt 00:00:31]} Be6 {[%clk 00:55:36]} {[%emt 00:11:11]} 20.
Rad1 {[%clk 00:41:06]} {[%emt 00:03:06]} Qc8 {[%clk 00:55:59]} {[%emt
00:00:06]} 21. Kh2 {[%clk 00:40:15]} {[%emt 00:01:22]} Rb5 {[%clk 00:55:54]}
{[%emt 00:00:36]} 22. Rfe1 {[%clk 00:35:35]} {[%emt 00:05:09]} Bf8 {[%clk
00:48:47]} {[%emt 00:07:37]} 23. Bxf8 {[%clk 00:30:33]} {[%emt 00:05:32]} Rxf8
{[%clk 00:48:47]} {[%emt 00:00:30]} 24. e5 {[%clk 00:29:52]} {[%emt 00:01:11]}
Nd5 {[%clk 00:47:25]} {[%emt 00:01:53]} 25. Rc1 {[%clk 00:27:14]} {[%emt
00:03:07]} b3 {[%clk 00:45:10]} {[%emt 00:02:45]} 26. axb3 {[%clk 00:22:07]}
{[%emt 00:05:37]} Nb4 {[%clk 00:45:28]} {[%emt 00:00:13]} 27. Qb1 {[%clk
00:21:48]} {[%emt 00:00:48]} Rd8 {[%clk 00:45:22]} {[%emt 00:00:36]} 28. Nc4
{[%clk 00:18:51]} {[%emt 00:03:27]} Nd3 {[%clk 00:40:16]} {[%emt 00:05:35]} 29.
Nd6 {[%clk 00:14:28]} {[%emt 00:04:55]} Rxd6 {[%clk 00:40:44]} {[%emt
00:00:02]} 30. exd6 {[%clk 00:14:47]} {[%emt 00:00:10]} Nxe1 {[%clk 00:40:58]}
{[%emt 00:00:16]} 31. Rxc6 {[%clk 00:15:02]} {[%emt 00:00:15]} Qd7 {[%clk
00:41:18]} {[%emt 00:00:10]} 32. Qxe1 {[%clk 00:15:17]} {[%emt 00:00:15]} Rxb3
{[%clk 00:36:47]} {[%emt 00:05:01]} 33. Rxa6 {[%clk 00:11:50]} {[%emt
00:03:57]} Rb8 {[%clk 00:28:40]} {[%emt 00:08:37]} 34. Qe5 {[%clk 00:11:06]}
{[%emt 00:01:14]} Rd8 {[%clk 00:20:30]} {[%emt 00:08:39]} 35. b4 {[%clk
00:09:43]} {[%emt 00:01:54]} Kh7 {[%clk 00:19:54]} {[%emt 00:01:06]} 36. b5
{[%clk 00:09:02]} {[%emt 00:01:11]} Bc4 {[%clk 00:19:57]} {[%emt 00:00:27]} 37.
Rb6 {[%clk 00:06:43]} {[%emt 00:02:49]} Be6 {[%clk 00:14:53]} {[%emt 00:05:34]}
38. Rc6 {[%clk 00:04:57]} {[%emt 00:02:15]} Rb8 {[%clk 00:14:12]} {[%emt
00:01:11]} 39. b6 {[%clk 00:04:27]} {[%emt 00:01:02]} Qd8 {[%clk 00:13:08]}
{[%emt 00:01:33]} 40. Rc7 {[%clk 00:04:05]} {[%emt 00:00:53]} Kg8 {[%clk
00:12:32]} {[%emt 00:01:06]} 41. b7 {[%clk 00:04:12]} {[%emt 00:00:21]} Qf8
{[%clk 00:09:24]} {[%emt 00:03:40]} 42. d7 {[%clk 00:03:47]} {[%emt 00:00:54]}
Rd8 {[%clk 00:06:35]} {[%emt 00:03:19]} 43. Rc8 {[%clk 00:04:02]} {[%emt
00:00:14]} 1-0

[Event "Goteborg Open 2024"]
[Site "Goteborgs Schackcentrum, Vegatan 20, Gothenburg, Sweden"]
[Date "2024.08.03"]
[Round "5.4"]
[White "Eldh, Hjalmar"]
[Black "Eriksson, Kristian"]
[Result "0-1"]
[TimeControl "15 minutes + 5 seconds per move from move one (Round 1 - 4) / 90 minutes + 30 seconds per move from move one (Round 5 - 8)"]
[WhiteFideId "1767968"]
[BlackFideId "1705172"]
[WhiteElo "1897"]
[BlackElo "2064"]

1. e4 {[%clk 01:30:57]} {[%emt 00:00:02]} e5 {[%clk 01:30:45]} {[%emt
00:00:15]} 2. Nf3 {[%clk 01:31:19]} {[%emt 00:00:09]} Nc6 {[%clk 01:31:05]}
{[%emt 00:00:09]} 3. Bc4 {[%clk 01:31:37]} {[%emt 00:00:12]} Nf6 {[%clk
01:31:07]} {[%emt 00:00:28]} 4. Ng5 {[%clk 01:31:45]} {[%emt 00:00:22]} d5
{[%clk 01:31:06]} {[%emt 00:00:32]} 5. exd5 {[%clk 01:32:06]} {[%emt 00:00:09]}
Na5 {[%clk 01:30:38]} {[%emt 00:00:57]} 6. Bb5+ {[%clk 01:32:26]} {[%emt
00:00:10]} c6 {[%clk 01:31:01]} {[%emt 00:00:08]} 7. dxc6 {[%clk 01:32:50]}
{[%emt 00:00:06]} bxc6 {[%clk 01:31:26]} {[%emt 00:00:05]} 8. Bd3 {[%clk
01:33:13]} {[%emt 00:00:07]} h6 {[%clk 01:27:19]} {[%emt 00:04:36]} 9. Ne4
{[%clk 01:33:38]} {[%emt 00:00:06]} Nd5 {[%clk 01:27:06]} {[%emt 00:00:42]} 10.
Nbc3 {[%clk 01:33:17]} {[%emt 00:00:51]} Rb8 {[%clk 01:24:50]} {[%emt
00:02:47]} 11. O-O {[%clk 01:30:42]} {[%emt 00:03:04]} g6 {[%clk 01:21:22]}
{[%emt 00:03:57]} 12. Re1 {[%clk 01:27:58]} {[%emt 00:03:15]} Bg7 {[%clk
01:20:57]} {[%emt 00:00:55]} 13. Bf1 {[%clk 01:27:58]} {[%emt 00:00:31]} O-O
{[%clk 01:20:37]} {[%emt 00:00:50]} 14. d3 {[%clk 01:27:23]} {[%emt 00:01:03]}
Nb7 {[%clk 01:17:26]} {[%emt 00:03:41]} 15. Bd2 {[%clk 01:22:50]} {[%emt
00:05:04]} f5 {[%clk 01:13:11]} {[%emt 00:04:46]} 16. Ng3 {[%clk 01:22:26]}
{[%emt 00:00:53]} Nd6 {[%clk 01:04:52]} {[%emt 00:08:49]} 17. Qc1 {[%clk
01:21:04]} {[%emt 00:01:52]} Qh4 {[%clk 01:01:53]} {[%emt 00:03:29]} 18. a3
{[%clk 01:15:55]} {[%emt 00:05:40]} Nf6 {[%clk 00:53:56]} {[%emt 00:08:27]} 19.
h3 {[%clk 01:13:13]} {[%emt 00:03:11]} f4 {[%clk 00:49:28]} {[%emt 00:04:58]}
20. Nge4 {[%clk 01:12:11]} {[%emt 00:01:32]} Ndxe4 {[%clk 00:48:10]} {[%emt
00:01:50]} 21. Nxe4 {[%clk 01:12:01]} {[%emt 00:00:39]} f3 {[%clk 00:46:10]}
{[%emt 00:02:29]} 22. Nxf6+ {[%clk 01:06:53]} {[%emt 00:05:39]} Rxf6 {[%clk
00:45:21]} {[%emt 00:01:18]} 23. Re4 {[%clk 01:03:47]} {[%emt 00:03:35]} Qh5
{[%clk 00:38:42]} {[%emt 00:07:11]} 24. g4 {[%clk 00:59:47]} {[%emt 00:04:30]}
Qh4 {[%clk 00:38:12]} {[%emt 00:01:00]} 25. g5 {[%clk 00:59:23]} {[%emt
00:00:53]} Rf4 {[%clk 00:34:21]} {[%emt 00:04:21]} 26. Bxf4 {[%clk 00:59:30]}
{[%emt 00:00:24]} exf4 {[%clk 00:34:36]} {[%emt 00:00:15]} 27. Qxf4 {[%clk
00:59:20]} {[%emt 00:00:39]} Qxf4 {[%clk 00:34:14]} {[%emt 00:00:52]} 28. Rxf4
{[%clk 00:59:46]} {[%emt 00:00:05]} Rxb2 {[%clk 00:33:59]} {[%emt 00:00:45]} 29.
Re1 {[%clk 00:58:15]} {[%emt 00:01:57]} Bf5 {[%clk 00:33:36]} {[%emt 00:00:56]}
30. gxh6 {[%clk 00:56:43]} {[%emt 00:02:02]} Bxh6 {[%clk 00:32:46]} {[%emt
00:01:20]} 31. Rc4 {[%clk 00:56:50]} {[%emt 00:00:22]} Rb6 {[%clk 00:26:30]}
{[%emt 00:06:47]} 32. Kh2 {[%clk 00:56:32]} {[%emt 00:00:48]} Kf7 {[%clk
00:25:05]} {[%emt 00:01:55]} 33. Kg3 {[%clk 00:56:32]} {[%emt 00:00:29]} Be6
{[%clk 00:23:33]} {[%emt 00:02:02]} 34. Rb4 {[%clk 00:56:41]} {[%emt 00:00:22]}
Ra6 {[%clk 00:23:27]} {[%emt 00:00:37]} 35. Ra1 {[%clk 00:52:43]} {[%emt
00:04:25]} Ra5 {[%clk 00:21:07]} {[%emt 00:02:52]} 36. Kxf3 {[%clk 00:51:09]}
{[%emt 00:02:04]} c5 {[%clk 00:11:09]} {[%emt 00:10:28]} 37. Rb7+ {[%clk
00:51:14]} {[%emt 00:00:25]} Kf6 {[%clk 00:11:24]} {[%emt 00:00:15]} 38. c4
{[%clk 00:51:30]} {[%emt 00:00:13]} Bd2 {[%clk 00:10:42]} {[%emt 00:01:12]} 39.
Rb5 {[%clk 00:51:07]} {[%emt 00:00:54]} Ra6 {[%clk 00:08:55]} {[%emt 00:02:18]}
40. Rxc5 {[%clk 00:50:51]} {[%emt 00:00:45]} Bc3 {[%clk 00:08:45]} {[%emt
00:00:39]} 41. Ra2 {[%clk 00:50:30]} {[%emt 00:00:52]} Bd4 {[%clk 00:08:37]}
{[%emt 00:00:38]} 42. Rb5 {[%clk 00:49:54]} {[%emt 00:01:06]} Bd7 {[%clk
00:08:42]} {[%emt 00:00:25]} 43. Ke4 {[%clk 00:49:17]} {[%emt 00:01:08]} Bb6
{[%clk 00:07:26]} {[%emt 00:01:45]} 44. Rxb6+ {[%clk 00:49:34]} {[%emt
00:00:13]} Rxb6 {[%clk 00:07:17]} {[%emt 00:00:40]} 45. d4 {[%clk 00:49:25]}
{[%emt 00:00:39]} Rb1 {[%clk 00:04:44]} {[%emt 00:03:02]} 46. Bd3 {[%clk
00:48:43]} {[%emt 00:01:09]} Bf5+ {[%clk 00:04:28]} {[%emt 00:00:49]} 47. Ke3
{[%clk 00:48:45]} {[%emt 00:00:27]} Rb3 {[%clk 00:04:20]} {[%emt 00:00:39]} 48.
Rd2 {[%clk 00:48:45]} {[%emt 00:00:29]} Rxa3 {[%clk 00:04:30]} {[%emt
00:00:22]} 49. h4 {[%clk 00:49:01]} {[%emt 00:00:13]} a5 {[%clk 00:02:07]}
{[%emt 00:02:54]} 50. Ke2 {[%clk 00:48:50]} {[%emt 00:00:40]} Bg4+ {[%clk
00:02:01]} {[%emt 00:00:36]} 51. f3 {[%clk 00:48:42]} {[%emt 00:00:34]} Bd7
{[%clk 00:02:28]} {[%emt 00:00:07]} 52. Rb2 {[%clk 00:48:46]} {[%emt 00:00:26]}
Be8 {[%clk 00:01:51]} {[%emt 00:01:08]} 53. Rb6+ {[%clk 00:48:17]} {[%emt
00:00:57]} Kg7 {[%clk 00:02:10]} {[%emt 00:00:12]} 54. c5 {[%clk 00:48:15]}
{[%emt 00:00:33]} a4 {[%clk 00:02:08]} {[%emt 00:00:33]} 55. c6 {[%clk
00:48:02]} {[%emt 00:00:42]} Rc3 {[%clk 00:02:11]} {[%emt 00:00:25]} 56. Bb5
{[%clk 00:47:54]} {[%emt 00:00:40]} a3 {[%clk 00:01:46]} {[%emt 00:00:55]} 57.
Ra6 {[%clk 00:47:34]} {[%emt 00:00:49]} Rb3 {[%clk 00:01:46]} {[%emt 00:00:31]}
58. c7 {[%clk 00:46:17]} {[%emt 00:01:47]} Bxb5+ {[%clk 00:02:10]} {[%emt
00:00:05]} 0-1

[Event "Goteborg Open 2024"]
[Site "Goteborgs Schackcentrum, Vegatan 20, Gothenburg, Sweden"]
[Date "2024.08.03"]
[Round "5.5"]
[White "Kallen, Jonas"]
[Black "Andersson, Stig"]
[Result "1-0"]
[TimeControl "15 minutes + 5 seconds per move from move one (Round 1 - 4) / 90 minutes + 30 seconds per move from move one (Round 5 - 8)"]
[WhiteFideId "1712896"]
[BlackFideId "1731971"]
[WhiteElo "2017"]
[BlackElo "1889"]

1. e4 {[%clk 01:30:45]} {[%emt 00:00:15]} e5 {[%clk 01:30:53]} {[%emt
00:00:08]} 2. Nf3 {[%clk 01:31:09]} {[%emt 00:00:06]} Nc6 {[%clk 01:31:16]}
{[%emt 00:00:07]} 3. d4 {[%clk 01:31:16]} {[%emt 00:00:24]} exd4 {[%clk
01:31:33]} {[%emt 00:00:11]} 4. Nxd4 {[%clk 01:31:43]} {[%emt 00:00:03]} Bc5
{[%clk 01:31:17]} {[%emt 00:00:46]} 5. Be3 {[%clk 01:31:58]} {[%emt 00:00:15]}
Bxd4 {[%clk 01:29:50]} {[%emt 00:01:58]} 6. Bxd4 {[%clk 01:32:20]} {[%emt
00:00:08]} Nxd4 {[%clk 01:29:22]} {[%emt 00:00:58]} 7. Qxd4 {[%clk 01:32:47]}
{[%emt 00:00:02]} Qf6 {[%clk 01:28:45]} {[%emt 00:01:07]} 8. c3 {[%clk
01:25:37]} {[%emt 00:07:41]} Qxd4 {[%clk 01:27:50]} {[%emt 00:01:25]} 9. cxd4
{[%clk 01:25:05]} {[%emt 00:01:02]} d6 {[%clk 01:27:55]} {[%emt 00:00:24]} 10.
Nc3 {[%clk 01:23:51]} {[%emt 00:01:45]} Bd7 {[%clk 01:26:01]} {[%emt 00:02:23]}
11. Bc4 {[%clk 01:21:42]} {[%emt 00:02:39]} Ne7 {[%clk 01:22:53]} {[%emt
00:03:38]} 12. O-O {[%clk 01:17:11]} {[%emt 00:05:00]} O-O {[%clk 01:22:19]}
{[%emt 00:01:05]} 13. Rac1 {[%clk 01:13:33]} {[%emt 00:04:08]} Rab8 {[%clk
01:19:58]} {[%emt 00:02:51]} 14. b4 {[%clk 01:08:00]} {[%emt 00:06:03]} b5
{[%clk 01:14:01]} {[%emt 00:06:27]} 15. Bd5 {[%clk 01:07:53]} {[%emt 00:00:37]}
Be6 {[%clk 01:11:01]} {[%emt 00:03:30]} 16. Bxe6 {[%clk 01:03:05]} {[%emt
00:05:18]} fxe6 {[%clk 01:10:39]} {[%emt 00:00:52]} 17. d5 {[%clk 01:02:14]}
{[%emt 00:01:21]} e5 {[%clk 01:07:43]} {[%emt 00:03:27]} 18. Rfd1 {[%clk
00:56:56]} {[%emt 00:05:47]} Rf7 {[%clk 01:07:04]} {[%emt 00:01:09]} 19. Ne2
{[%clk 00:54:19]} {[%emt 00:03:06]} Nc8 {[%clk 01:06:08]} {[%emt 00:01:28]} 20.
Rc6 {[%clk 00:49:33]} {[%emt 00:05:15]} Nb6 {[%clk 01:04:42]} {[%emt 00:01:56]}
21. f3 {[%clk 00:48:26]} {[%emt 00:01:37]} Kf8 {[%clk 01:03:23]} {[%emt
00:01:49]} 22. Rdc1 {[%clk 00:46:57]} {[%emt 00:02:00]} Rb7 {[%clk 00:59:33]}
{[%emt 00:04:19]} 23. Nc3 {[%clk 00:43:00]} {[%emt 00:04:28]} a6 {[%clk
00:58:47]} {[%emt 00:01:16]} 24. Nb1 {[%clk 00:43:10]} {[%emt 00:00:20]} Ke8
{[%clk 00:57:38]} {[%emt 00:01:38]} 25. Nd2 {[%clk 00:43:18]} {[%emt 00:00:22]}
Kd8 {[%clk 00:57:41]} {[%emt 00:00:28]} 26. Nb3 {[%clk 00:43:27]} {[%emt
00:00:21]} Ra7 {[%clk 00:57:40]} {[%emt 00:00:31]} 27. Na5 {[%clk 00:43:33]}
{[%emt 00:00:24]} Kd7 {[%clk 00:53:10]} {[%emt 00:04:59]} 28. R1c2 {[%clk
00:42:47]} {[%emt 00:01:16]} Nc8 {[%clk 00:52:18]} {[%emt 00:01:21]} 29. R6c3
{[%clk 00:40:51]} {[%emt 00:02:26]} Nb6 {[%clk 00:50:54]} {[%emt 00:01:56]} 30.
Kf2 {[%clk 00:40:02]} {[%emt 00:01:18]} Na4 {[%clk 00:50:05]} {[%emt 00:01:19]}
31. Rc6 {[%clk 00:40:19]} {[%emt 00:00:13]} Nb6 {[%clk 00:50:04]} {[%emt
00:00:31]} 32. h4 {[%clk 00:39:48]} {[%emt 00:01:01]} h5 {[%clk 00:49:01]}
{[%emt 00:01:33]} 33. Ke3 {[%clk 00:39:32]} {[%emt 00:00:47]} Nc8 {[%clk
00:48:35]} {[%emt 00:00:56]} 34. g3 {[%clk 00:39:06]} {[%emt 00:00:55]} Rf6
{[%clk 00:44:55]} {[%emt 00:04:10]} 35. R6c3 {[%clk 00:35:23]} {[%emt
00:04:13]} Nb6 {[%clk 00:42:59]} {[%emt 00:02:26]} 36. Rc1 {[%clk 00:34:50]}
{[%emt 00:01:04]} Nc8 {[%clk 00:42:15]} {[%emt 00:01:13]} 37. Ra3 {[%clk
00:32:34]} {[%emt 00:02:46]} Nb6 {[%clk 00:41:49]} {[%emt 00:00:56]} 38. Ke2
{[%clk 00:30:00]} {[%emt 00:03:04]} Ra8 {[%clk 00:39:16]} {[%emt 00:03:03]} 39.
Rf1 {[%clk 00:28:51]} {[%emt 00:01:40]} Raf8 {[%clk 00:38:39]} {[%emt
00:01:06]} 40. Nb3 {[%clk 00:27:46]} {[%emt 00:01:36]} Ra8 {[%clk 00:38:40]}
{[%emt 00:00:29]} 41. Nd2 {[%clk 00:27:56]} {[%emt 00:00:20]} Na4 {[%clk
00:38:15]} {[%emt 00:00:54]} 42. f4 {[%clk 00:25:29]} {[%emt 00:02:58]} Rc8
{[%clk 00:34:39]} {[%emt 00:04:06]} 43. fxe5 {[%clk 00:24:12]} {[%emt
00:01:47]} dxe5 {[%clk 00:34:45]} {[%emt 00:00:24]} 44. Nc4 {[%clk 00:21:35]}
{[%emt 00:03:06]} bxc4 {[%clk 00:30:32]} {[%emt 00:04:44]} 45. Rxa4 {[%clk
00:22:00]} {[%emt 00:00:06]} Rxf1 {[%clk 00:26:53]} {[%emt 00:04:08]} 46. Kxf1
{[%clk 00:22:28]} {[%emt 00:00:01]} c6 {[%clk 00:26:42]} {[%emt 00:00:41]} 47.
Ra5 {[%clk 00:20:02]} {[%emt 00:02:57]} cxd5 {[%clk 00:25:27]} {[%emt
00:01:44]} 48. Rxd5+ {[%clk 00:20:30]} {[%emt 00:00:02]} Ke6 {[%clk 00:25:35]}
{[%emt 00:00:22]} 49. Ke2 {[%clk 00:20:23]} {[%emt 00:00:38]} Rc7 {[%clk
00:20:26]} {[%emt 00:05:38]} 50. Ra5 {[%clk 00:19:41]} {[%emt 00:01:13]} Rc6
{[%clk 00:18:38]} {[%emt 00:02:18]} 51. Kd2 {[%clk 00:19:49]} {[%emt 00:00:22]}
Rd6+ {[%clk 00:18:42]} {[%emt 00:00:26]} 52. Kc3 {[%clk 00:18:44]} {[%emt
00:01:35]} Rd3+ {[%clk 00:18:34]} {[%emt 00:00:38]} 53. Kxc4 {[%clk 00:19:07]}
{[%emt 00:00:06]} Rd4+ {[%clk 00:18:39]} {[%emt 00:00:26]} 54. Kc5 {[%clk
00:18:47]} {[%emt 00:00:50]} Rxe4 {[%clk 00:18:59]} {[%emt 00:00:10]} 55. Rxa6+
{[%clk 00:19:06]} {[%emt 00:00:11]} Kf7 {[%clk 00:19:08]} {[%emt 00:00:21]} 56.
b5 {[%clk 00:19:12]} {[%emt 00:00:24]} Re1 {[%clk 00:17:02]} {[%emt 00:02:35]}
57. Kd5 {[%clk 00:18:30]} {[%emt 00:01:12]} e4 {[%clk 00:16:27]} {[%emt
00:01:05]} 58. Kd4 {[%clk 00:18:10]} {[%emt 00:00:50]} e3 {[%clk 00:16:27]}
{[%emt 00:00:31]} 59. Kd3 {[%clk 00:18:36]} {[%emt 00:00:04]} Rg1 {[%clk
00:16:06]} {[%emt 00:00:51]} 60. Ra3 {[%clk 00:16:01]} {[%emt 00:03:04]} Rxg3
{[%clk 00:16:11]} {[%emt 00:00:26]} 61. Rb3 {[%clk 00:16:08]} {[%emt 00:00:23]}
g5 {[%clk 00:12:43]} {[%emt 00:03:57]} 62. b6 {[%clk 00:15:55]} {[%emt
00:00:44]} gxh4 {[%clk 00:12:59]} {[%emt 00:00:14]} 63. b7 {[%clk 00:16:19]}
{[%emt 00:00:06]} Rg8 {[%clk 00:13:02]} {[%emt 00:00:26]} 64. b8=Q {[%clk
00:16:38]} {[%emt 00:00:11]} Rxb8 {[%clk 00:13:14]} {[%emt 00:00:18]} 65. Rxb8
{[%clk 00:17:06]} {[%emt 00:00:02]} h3 {[%clk 00:13:11]} {[%emt 00:00:33]} 66.
Rb2 {[%clk 00:17:29]} {[%emt 00:00:08]} Kg6 {[%clk 00:13:35]} {[%emt 00:00:05]}
67. Kxe3 {[%clk 00:17:51]} {[%emt 00:00:08]} Kg5 {[%clk 00:13:51]} {[%emt
00:00:15]} 68. Kf3 {[%clk 00:18:11]} {[%emt 00:00:10]} Kh4 {[%clk 00:07:49]}
{[%emt 00:06:31]} 69. a4 {[%clk 00:18:13]} {[%emt 00:00:29]} 1-0